[Event "Titled Tuesday Blitz May 9 Late 2023"]
[White "Ronka, Erik"]
[Black "Silva Rosas, Natalia"]
[WhiteFideId "505080"]
[BlackFideId "3000575"]
[WhiteElo "2264"]
[BlackElo "1651"]
[Result "1-0"]
[Round "01"]
[TimeControl "180+2"]
[Date "2023.05.09"]
[WhiteClock "0:02:21"]
[BlackClock "0:00:09"]

1. e4 {[%clk 0:03:00]}  c5 {[%clk 0:02:59]} 2. Nf3 {[%clk 0:03:00]}  e6 {[%clk 0:02:59]} 3. g3 {[%clk 0:02:54]}  Nc6 {[%clk 0:02:59]} 4. Bg2 {[%clk 0:02:53]}  d5 {[%clk 0:02:59]} 5. exd5 {[%clk 0:02:53]}  exd5 {[%clk 0:03:00]} 6. d4 {[%clk 0:02:54]}  cxd4 {[%clk 0:02:59]} 7. Nxd4 {[%clk 0:02:53]}  Nxd4 {[%clk 0:02:59]} 8. Qxd4 {[%clk 0:02:54]}  Be6 {[%clk 0:02:59]} 9. Nc3 {[%clk 0:02:50]}  a6 {[%clk 0:02:53]} 10. Nxd5 {[%clk 0:02:46]}  Rc8 {[%clk 0:01:45]} 11. O-O {[%clk 0:02:41]}  Rc5 {[%clk 0:01:12]} 12. c4 {[%clk 0:02:32]}  Bxd5 {[%clk 0:00:58]} 13. Bxd5 {[%clk 0:02:30]}  Rxd5 {[%clk 0:00:50]} 14. Qxd5 {[%clk 0:02:26]}  Qxd5 {[%clk 0:00:47]} 15. cxd5 {[%clk 0:02:27]}  Nf6 {[%clk 0:00:46]} 16. Rd1 {[%clk 0:02:26]}  Bd6 {[%clk 0:00:45]} 17. Bg5 {[%clk 0:02:22]}  Nd7 {[%clk 0:00:44]} 18. Re1+ {[%clk 0:02:20]}  Kf8 {[%clk 0:00:42]} 19. Rac1 {[%clk 0:02:21]}  g6 {[%clk 0:00:37]} 20. Bh6+ {[%clk 0:02:19]}  Kg8 {[%clk 0:00:31]} 21. Re8+ {[%clk 0:02:20]}  Nf8 {[%clk 0:00:09]} 22. Rcc8 {[%clk 0:02:21]} 1-0


[Site "https://www.chess.com"]

[Event "Titled Tuesday Blitz May 9 Late 2023"]
[White "awayceiling"]
[Black "Bilan, Danila"]
[BlackFideId "24161918"]
[WhiteElo "1314"]
[BlackElo "2182"]
[Result "0-1"]
[Round "01"]
[TimeControl "180+2"]
[Date "2023.05.09"]
[WhiteClock "0:00:10"]
[BlackClock "0:00:54"]

1. e4 {[%clk 0:02:59]}  c6 {[%clk 0:02:59]} 2. d4 {[%clk 0:02:58]}  d5 {[%clk 0:02:56]} 3. Nc3 {[%clk 0:02:58]}  dxe4 {[%clk 0:02:54]} 4. Nxe4 {[%clk 0:02:59]}  Bf5 {[%clk 0:02:53]} 5. Ng3 {[%clk 0:02:59]}  Bg6 {[%clk 0:02:53]} 6. h4 {[%clk 0:02:58]}  h6 {[%clk 0:02:53]} 7. Nf3 {[%clk 0:02:59]}  Nd7 {[%clk 0:02:53]} 8. Bd3 {[%clk 0:02:57]}  Bxd3 {[%clk 0:02:52]} 9. Qxd3 {[%clk 0:02:57]}  Qc7 {[%clk 0:02:51]} 10. O-O {[%clk 0:02:54]}  e6 {[%clk 0:02:49]} 11. Re1 {[%clk 0:02:49]}  Ngf6 {[%clk 0:02:45]} 12. Ne5 {[%clk 0:02:42]}  Be7 {[%clk 0:02:19]} 13. Bf4 {[%clk 0:02:34]}  Nd5 {[%clk 0:02:01]} 14. Bd2 {[%clk 0:01:43]}  Bxh4 {[%clk 0:01:44]} 15. Nxd7 {[%clk 0:01:34]}  Qxd7 {[%clk 0:01:40]} 16. Qe4 {[%clk 0:01:14]}  Bxg3 {[%clk 0:01:35]} 17. fxg3 {[%clk 0:01:11]}  Nf6 {[%clk 0:01:30]} 18. Qe5 {[%clk 0:01:07]}  Qd5 {[%clk 0:01:25]} 19. Qe3 {[%clk 0:00:53]}  O-O {[%clk 0:01:14]} 20. Rf1 {[%clk 0:00:48]}  Qh5 {[%clk 0:01:08]} 21. Qf4 {[%clk 0:00:13]}  Ng4 {[%clk 0:00:54]} 22. Rf3 {[%clk 0:00:10]}  Qh2+ {[%clk 0:00:54]} 0-1


[Site "https://www.chess.com"]

[Event "Titled Tuesday Blitz May 9 Late 2023"]
[White "Rosen, Eric"]
[Black "Nakamura, Hikaru"]
[WhiteFideId "2032562"]
[BlackFideId "2016192"]
[WhiteElo "2331"]
[BlackElo "2885"]
[Result "0-1"]
[Round "02"]
[TimeControl "180+2"]
[Date "2023.05.09"]
[WhiteClock "0:00:00"]
[BlackClock "0:01:08"]

1. d4 {[%clk 0:03:00]}  d5 {[%clk 0:02:59]} 2. Bf4 {[%clk 0:03:01]}  c5 {[%clk 0:02:59]} 3. Nc3 {[%clk 0:03:01]}  e6 {[%clk 0:02:55]} 4. e4 {[%clk 0:02:59]}  cxd4 {[%clk 0:02:49]} 5. Qxd4 {[%clk 0:02:59]}  Nc6 {[%clk 0:02:49]} 6. Bb5 {[%clk 0:02:59]}  Bd7 {[%clk 0:02:48]} 7. Bxc6 {[%clk 0:02:52]}  bxc6 {[%clk 0:02:49]} 8. exd5 {[%clk 0:02:37]}  cxd5 {[%clk 0:02:48]} 9. Nf3 {[%clk 0:02:38]}  Qb6 {[%clk 0:02:45]} 10. O-O-O {[%clk 0:02:08]}  Qxd4 {[%clk 0:02:39]} 11. Nxd4 {[%clk 0:02:08]}  f6 {[%clk 0:02:39]} 12. Rhe1 {[%clk 0:01:56]}  Kf7 {[%clk 0:02:39]} 13. Bg3 {[%clk 0:01:30]}  Bb4 {[%clk 0:02:33]} 14. Re3 {[%clk 0:01:05]}  Ne7 {[%clk 0:02:30]} 15. Ndb5 {[%clk 0:00:59]}  Nf5 {[%clk 0:02:27]} 16. Red3 {[%clk 0:00:55]}  Nxg3 {[%clk 0:02:17]} 17. Rxg3 {[%clk 0:00:48]}  Rab8 {[%clk 0:02:11]} 18. a3 {[%clk 0:00:41]}  Bc5 {[%clk 0:01:41]} 19. Nd4 {[%clk 0:00:36]}  Bd6 {[%clk 0:01:41]} 20. Rgd3 {[%clk 0:00:29]}  Rhc8 {[%clk 0:01:39]} 21. g3 {[%clk 0:00:26]}  g5 {[%clk 0:01:34]} 22. Re1 {[%clk 0:00:23]}  Bc5 {[%clk 0:01:31]} 23. Nb3 {[%clk 0:00:22]}  Bxf2 {[%clk 0:01:27]} 24. Rf1 {[%clk 0:00:22]}  Bb6 {[%clk 0:01:25]} 25. Ne4 {[%clk 0:00:21]}  Kg7 {[%clk 0:01:08]} 26. Nxf6 {[%clk 0:00:16]}  Bb5 {[%clk 0:01:08]} 27. Nh5+ {[%clk 0:00:15]}  Kg8 {[%clk 0:01:08]} 28. Rdf3 {[%clk 0:00:03]}  Bxf1 {[%clk 0:01:08]} 29. Rxf1 {[%clk 0:00:04]}  Rf8 {[%clk 0:01:05]} 30. Re1 {[%clk 0:00:02]}  Rbe8 {[%clk 0:01:06]} 31. Nd2 {[%clk 0:00:02]}  e5 {[%clk 0:01:06]} 32. g4 {[%clk 0:00:02]}  e4 {[%clk 0:01:05]} 33. Ng3 {[%clk 0:00:02]}  Bf2 {[%clk 0:01:06]} 34. Re2 {[%clk 0:00:02]}  Bxg3 {[%clk 0:01:06]} 35. hxg3 {[%clk 0:00:03]}  e3 {[%clk 0:01:06]} 36. Kd1 {[%clk 0:00:02]}  exd2 {[%clk 0:01:06]} 37. Rxe8 {[%clk 0:00:02]}  Rxe8 {[%clk 0:01:07]} 38. Kxd2 {[%clk 0:00:03]}  Re4 {[%clk 0:01:07]} 39. b4 {[%clk 0:00:00]}  Rxg4 {[%clk 0:01:08]} 0-1


[Site "https://www.chess.com"]

[Event "Titled Tuesday Blitz May 9 Late 2023"]
[White "Carlsen, Magnus"]
[Black "Soham Kamotra"]
[WhiteFideId "1503014"]
[BlackFideId "46647490"]
[WhiteElo "2852"]
[BlackElo "2209"]
[Result "1-0"]
[Round "02"]
[TimeControl "180+2"]
[Date "2023.05.09"]
[WhiteClock "0:00:43"]
[BlackClock "0:00:00"]

1. a4 {[%clk 0:02:58]}  Nf6 {[%clk 0:02:58]} 2. a5 {[%clk 0:02:56]}  e5 {[%clk 0:02:57]} 3. e3 {[%clk 0:02:54]}  d5 {[%clk 0:02:57]} 4. d4 {[%clk 0:02:53]}  e4 {[%clk 0:02:56]} 5. c4 {[%clk 0:02:53]}  c6 {[%clk 0:02:55]} 6. Nc3 {[%clk 0:02:53]}  Bd6 {[%clk 0:02:26]} 7. Bd2 {[%clk 0:02:53]}  O-O {[%clk 0:02:25]} 8. cxd5 {[%clk 0:02:53]}  cxd5 {[%clk 0:02:23]} 9. Qb3 {[%clk 0:02:54]}  Nc6 {[%clk 0:01:39]} 10. Nxd5 {[%clk 0:02:42]}  Nxd5 {[%clk 0:01:39]} 11. Qxd5 {[%clk 0:02:43]}  Re8 {[%clk 0:01:39]} 12. Qb3 {[%clk 0:02:36]}  Qf6 {[%clk 0:00:55]} 13. Ne2 {[%clk 0:02:30]}  Ne7 {[%clk 0:00:50]} 14. Nc3 {[%clk 0:02:23]}  Qg6 {[%clk 0:00:49]} 15. g3 {[%clk 0:02:14]}  Bg4 {[%clk 0:00:47]} 16. Bg2 {[%clk 0:02:14]}  Bf3 {[%clk 0:00:42]} 17. Bxf3 {[%clk 0:02:14]}  exf3 {[%clk 0:00:43]} 18. Qxb7 {[%clk 0:02:14]}  Nf5 {[%clk 0:00:38]} 19. O-O-O {[%clk 0:01:33]}  Rab8 {[%clk 0:00:27]} 20. Qxf3 {[%clk 0:01:32]}  Rec8 {[%clk 0:00:26]} 21. Qe4 {[%clk 0:01:28]}  Bb4 {[%clk 0:00:09]} 22. g4 {[%clk 0:01:23]}  Nxd4 {[%clk 0:00:08]} 23. Qxg6 {[%clk 0:01:04]}  Ne2+ {[%clk 0:00:09]} 24. Kb1 {[%clk 0:01:03]}  Nxc3+ {[%clk 0:00:09]} 25. Bxc3 {[%clk 0:01:04]}  hxg6 {[%clk 0:00:08]} 26. Bxb4 {[%clk 0:01:03]}  Rxb4 {[%clk 0:00:09]} 27. Rd4 {[%clk 0:01:04]}  Rb5 {[%clk 0:00:07]} 28. Ra4 {[%clk 0:00:58]}  Rd8 {[%clk 0:00:06]} 29. Rc1 {[%clk 0:00:57]}  Rd2 {[%clk 0:00:06]} 30. Rc8+ {[%clk 0:00:52]}  Kh7 {[%clk 0:00:05]} 31. Rc2 {[%clk 0:00:47]}  Rd1+ {[%clk 0:00:04]} 32. Ka2 {[%clk 0:00:48]}  Rg1 {[%clk 0:00:05]} 33. h3 {[%clk 0:00:44]}  Rg2 {[%clk 0:00:05]} 34. b4 {[%clk 0:00:43]}  Rh2 {[%clk 0:00:03]} 35. Kb3 {[%clk 0:00:42]}  Rxh3 {[%clk 0:00:04]} 36. Rc7 {[%clk 0:00:42]}  Rf3 {[%clk 0:00:03]} 37. Rxa7 {[%clk 0:00:42]}  Rxf2 {[%clk 0:00:03]} 38. a6 {[%clk 0:00:43]}  Rf3 {[%clk 0:00:03]} 39. Re7 {[%clk 0:00:43]}  Rf2 {[%clk 0:00:00]} 40. a7 {[%clk 0:00:43]} 1-0


[Site "https://www.chess.com"]

[Event "Titled Tuesday Blitz May 9 Late 2023"]
[White "benny_aizenberg"]
[Black "Naroditsky, Daniel"]
[BlackFideId "2026961"]
[WhiteElo "2627"]
[BlackElo "2633"]
[Result "1-0"]
[Round "02"]
[TimeControl "180+2"]
[Date "2023.05.09"]
[WhiteClock "0:00:23"]
[BlackClock "0:00:00"]

1. e4 {[%clk 0:03:00]}  c5 {[%clk 0:02:57]} 2. Nf3 {[%clk 0:03:00]}  d6 {[%clk 0:02:58]} 3. d4 {[%clk 0:03:01]}  cxd4 {[%clk 0:02:59]} 4. Nxd4 {[%clk 0:03:01]}  Nf6 {[%clk 0:02:59]} 5. Nc3 {[%clk 0:03:02]}  a6 {[%clk 0:03:00]} 6. Bg5 {[%clk 0:03:02]}  e6 {[%clk 0:03:00]} 7. f4 {[%clk 0:03:02]}  Be7 {[%clk 0:03:00]} 8. Qf3 {[%clk 0:03:00]}  Qc7 {[%clk 0:03:01]} 9. O-O-O {[%clk 0:03:00]}  Nbd7 {[%clk 0:03:01]} 10. g4 {[%clk 0:03:00]}  h6 {[%clk 0:03:01]} 11. Bxf6 {[%clk 0:03:00]}  Bxf6 {[%clk 0:03:01]} 12. h4 {[%clk 0:03:01]}  Nb6 {[%clk 0:02:59]} 13. g5 {[%clk 0:03:01]}  Bxd4 {[%clk 0:03:00]} 14. Rxd4 {[%clk 0:03:02]}  Qc5 {[%clk 0:03:00]} 15. Rd1 {[%clk 0:02:59]}  Bd7 {[%clk 0:02:50]} 16. Be2 {[%clk 0:02:51]}  O-O-O {[%clk 0:02:41]} 17. Kb1 {[%clk 0:02:48]}  Bc6 {[%clk 0:02:36]} 18. a3 {[%clk 0:02:47]}  d5 {[%clk 0:02:36]} 19. exd5 {[%clk 0:02:43]}  Nxd5 {[%clk 0:02:36]} 20. Ne4 {[%clk 0:02:43]}  Qb6 {[%clk 0:02:09]} 21. f5 {[%clk 0:02:37]}  hxg5 {[%clk 0:01:56]} 22. hxg5 {[%clk 0:02:27]}  Rxh1 {[%clk 0:01:55]} 23. Rxh1 {[%clk 0:02:28]}  Kb8 {[%clk 0:01:34]} 24. fxe6 {[%clk 0:02:27]}  fxe6 {[%clk 0:01:34]} 25. Qg3+ {[%clk 0:02:25]}  Ka8 {[%clk 0:01:27]} 26. Rd1 {[%clk 0:02:24]}  Rc8 {[%clk 0:01:12]} 27. Nd6 {[%clk 0:02:18]}  Rf8 {[%clk 0:01:09]} 28. Nc4 {[%clk 0:02:16]}  Qf2 {[%clk 0:01:05]} 29. Qxf2 {[%clk 0:02:14]}  Rxf2 {[%clk 0:01:05]} 30. Bg4 {[%clk 0:02:14]}  Ba4 {[%clk 0:00:43]} 31. Rc1 {[%clk 0:01:58]}  Bb5 {[%clk 0:00:34]} 32. Nd6 {[%clk 0:01:39]}  Bd7 {[%clk 0:00:35]} 33. Re1 {[%clk 0:01:35]}  Nf4 {[%clk 0:00:28]} 34. Ne4 {[%clk 0:01:25]}  Rh2 {[%clk 0:00:21]} 35. Nc5 {[%clk 0:01:23]}  Bc6 {[%clk 0:00:19]} 36. Nxe6 {[%clk 0:01:22]}  Nxe6 {[%clk 0:00:16]} 37. Bxe6 {[%clk 0:01:22]}  Rg2 {[%clk 0:00:17]} 38. Re5 {[%clk 0:01:22]}  Kb8 {[%clk 0:00:16]} 39. Bb3 {[%clk 0:01:14]}  Rg3 {[%clk 0:00:12]} 40. Ka2 {[%clk 0:01:12]}  Ka7 {[%clk 0:00:10]} 41. Be6 {[%clk 0:01:03]}  Kb6 {[%clk 0:00:08]} 42. b4 {[%clk 0:00:58]}  Kc7 {[%clk 0:00:08]} 43. Bb3 {[%clk 0:00:51]}  Bd7 {[%clk 0:00:06]} 44. Re7 {[%clk 0:00:46]}  Rxg5 {[%clk 0:00:06]} 45. Be6 {[%clk 0:00:47]}  Kd6 {[%clk 0:00:03]} 46. Rxd7+ {[%clk 0:00:47]}  Kxe6 {[%clk 0:00:03]} 47. Rxb7 {[%clk 0:00:47]}  a5 {[%clk 0:00:04]} 48. c4 {[%clk 0:00:44]}  axb4 {[%clk 0:00:05]} 49. axb4 {[%clk 0:00:44]}  Rg2+ {[%clk 0:00:06]} 50. Kb3 {[%clk 0:00:44]}  Rg1 {[%clk 0:00:07]} 51. c5 {[%clk 0:00:44]}  g5 {[%clk 0:00:07]} 52. c6 {[%clk 0:00:40]}  g4 {[%clk 0:00:08]} 53. Rg7 {[%clk 0:00:34]}  g3 {[%clk 0:00:05]} 54. Kb2 {[%clk 0:00:32]}  Rg2+ {[%clk 0:00:04]} 55. Kb3 {[%clk 0:00:29]}  Rg1 {[%clk 0:00:05]} 56. b5 {[%clk 0:00:24]}  Rb1+ {[%clk 0:00:02]} 57. Kc4 {[%clk 0:00:24]}  Rc1+ {[%clk 0:00:02]} 58. Kb4 {[%clk 0:00:24]}  Rb1+ {[%clk 0:00:02]} 59. Ka5 {[%clk 0:00:24]}  Rb3 {[%clk 0:00:02]} 60. c7 {[%clk 0:00:22]}  Rc3 {[%clk 0:00:02]} 61. Kb6 {[%clk 0:00:22]}  Kd6 {[%clk 0:00:02]} 62. Kb7 {[%clk 0:00:22]}  Rc5 {[%clk 0:00:01]} 63. b6 {[%clk 0:00:22]}  g2 {[%clk 0:00:02]} 64. Rxg2 {[%clk 0:00:22]}  Kd5 {[%clk 0:00:02]} 65. Rg5+ {[%clk 0:00:21]}  Kd6 {[%clk 0:00:01]} 66. Rxc5 {[%clk 0:00:22]}  Kxc5 {[%clk 0:00:01]} 67. c8=Q+ {[%clk 0:00:22]}  Kb5 {[%clk 0:00:02]} 68. Qc6+ {[%clk 0:00:22]}  Kb4 {[%clk 0:00:03]} 69. Qd5 {[%clk 0:00:22]}  Ka4 {[%clk 0:00:03]} 70. Kc6 {[%clk 0:00:23]}  Kb4 {[%clk 0:00:00]} 71. b7 {[%clk 0:00:23]} 1-0


[Site "https://www.chess.com"]

[Event "Titled Tuesday Blitz May 9 Late 2023"]
[White "Moussard, Jules"]
[Black "Taichman, Ori"]
[WhiteFideId "642908"]
[BlackFideId "2804069"]
[WhiteElo "2610"]
[BlackElo "2237"]
[Result "1-0"]
[Round "02"]
[TimeControl "180+2"]
[Date "2023.05.09"]
[WhiteClock "0:00:23"]
[BlackClock "0:00:12"]

1. c4 {[%clk 0:03:00]}  g6 {[%clk 0:03:00]} 2. h4 {[%clk 0:02:59]}  Nf6 {[%clk 0:02:58]} 3. Nc3 {[%clk 0:02:59]}  Bg7 {[%clk 0:02:59]} 4. e4 {[%clk 0:02:59]}  O-O {[%clk 0:02:59]} 5. d4 {[%clk 0:02:56]}  d6 {[%clk 0:02:59]} 6. Be2 {[%clk 0:02:56]}  e5 {[%clk 0:02:54]} 7. d5 {[%clk 0:02:55]}  Na6 {[%clk 0:02:53]} 8. h5 {[%clk 0:02:51]}  Nc5 {[%clk 0:02:52]} 9. Qc2 {[%clk 0:02:44]}  a5 {[%clk 0:02:31]} 10. Be3 {[%clk 0:02:36]}  Nfd7 {[%clk 0:01:47]} 11. h6 {[%clk 0:02:34]}  Bh8 {[%clk 0:01:48]} 12. g4 {[%clk 0:02:32]}  f5 {[%clk 0:01:45]} 13. gxf5 {[%clk 0:02:27]}  gxf5 {[%clk 0:01:46]} 14. Nf3 {[%clk 0:02:25]}  f4 {[%clk 0:01:39]} 15. Rg1+ {[%clk 0:02:19]}  Kf7 {[%clk 0:01:38]} 16. Ng5+ {[%clk 0:02:19]}  Ke7 {[%clk 0:01:38]} 17. Bxc5 {[%clk 0:01:27]}  Nxc5 {[%clk 0:01:39]} 18. O-O-O {[%clk 0:01:27]}  Rf6 {[%clk 0:01:20]} 19. Bg4 {[%clk 0:01:16]}  Rxh6 {[%clk 0:01:15]} 20. Ne6 {[%clk 0:01:14]}  Bxe6 {[%clk 0:01:09]} 21. dxe6 {[%clk 0:01:13]}  c6 {[%clk 0:01:07]} 22. Bf5 {[%clk 0:01:11]}  Bf6 {[%clk 0:01:04]} 23. Na4 {[%clk 0:01:05]}  Nxa4 {[%clk 0:00:59]} 24. Qxa4 {[%clk 0:01:06]}  Qb6 {[%clk 0:00:55]} 25. Qc2 {[%clk 0:00:56]}  Rh2 {[%clk 0:00:52]} 26. c5 {[%clk 0:00:55]}  Qb4 {[%clk 0:00:33]} 27. cxd6+ {[%clk 0:00:53]}  Kf8 {[%clk 0:00:33]} 28. e7+ {[%clk 0:00:42]}  Kf7 {[%clk 0:00:32]} 29. Rh1 {[%clk 0:00:32]}  Rxh1 {[%clk 0:00:24]} 30. Rxh1 {[%clk 0:00:32]}  Qxd6 {[%clk 0:00:22]} 31. Qb3+ {[%clk 0:00:30]}  Kxe7 {[%clk 0:00:20]} 32. Rxh7+ {[%clk 0:00:25]}  Kd8 {[%clk 0:00:12]} 33. Qg8+ {[%clk 0:00:23]} 1-0


[Site "https://www.chess.com"]

[Event "Titled Tuesday Blitz May 9 Late 2023"]
[White "Subelj, Jan"]
[Black "Kollars, Dmitrij"]
[WhiteFideId "14618583"]
[BlackFideId "12909572"]
[WhiteElo "2474"]
[BlackElo "2584"]
[Result "1/2-1/2"]
[Round "02"]
[TimeControl "180+2"]
[Date "2023.05.09"]
[WhiteClock "0:00:06"]
[BlackClock "0:00:15"]

1. e4 {[%clk 0:02:56]}  c6 {[%clk 0:02:59]} 2. Nf3 {[%clk 0:02:56]}  d5 {[%clk 0:03:00]} 3. d3 {[%clk 0:02:57]}  dxe4 {[%clk 0:02:58]} 4. dxe4 {[%clk 0:02:57]}  Qxd1+ {[%clk 0:02:59]} 5. Kxd1 {[%clk 0:02:58]}  Nf6 {[%clk 0:02:59]} 6. Nfd2 {[%clk 0:02:57]}  h5 {[%clk 0:02:59]} 7. h4 {[%clk 0:02:56]}  Ng4 {[%clk 0:02:59]} 8. Ke2 {[%clk 0:02:54]}  g6 {[%clk 0:02:55]} 9. f3 {[%clk 0:02:53]}  Ne5 {[%clk 0:02:55]} 10. Na3 {[%clk 0:02:47]}  Bh6 {[%clk 0:02:50]} 11. Ndc4 {[%clk 0:02:46]}  Nxc4 {[%clk 0:02:46]} 12. Nxc4 {[%clk 0:02:45]}  Be6 {[%clk 0:02:44]} 13. Ne3 {[%clk 0:02:41]}  Nd7 {[%clk 0:02:34]} 14. Bd2 {[%clk 0:02:40]}  O-O-O {[%clk 0:02:32]} 15. Bc3 {[%clk 0:02:30]}  f6 {[%clk 0:02:30]} 16. Kf2 {[%clk 0:02:24]}  Nc5 {[%clk 0:02:27]} 17. Be2 {[%clk 0:02:22]}  Na4 {[%clk 0:02:27]} 18. Ba5 {[%clk 0:02:15]}  b6 {[%clk 0:02:22]} 19. b3 {[%clk 0:02:05]}  bxa5 {[%clk 0:02:11]} 20. bxa4 {[%clk 0:02:04]}  Rd2 {[%clk 0:02:12]} 21. Rhd1 {[%clk 0:01:42]}  Bxe3+ {[%clk 0:01:56]} 22. Kxe3 {[%clk 0:01:41]}  Rxc2 {[%clk 0:01:57]} 23. Rab1 {[%clk 0:01:34]}  Bc4 {[%clk 0:01:34]} 24. Bxc4 {[%clk 0:01:23]}  Rxc4 {[%clk 0:01:34]} 25. Rd4 {[%clk 0:01:23]}  Rxd4 {[%clk 0:01:27]} 26. Kxd4 {[%clk 0:01:24]}  Rd8+ {[%clk 0:01:28]} 27. Kc3 {[%clk 0:01:23]}  Kc7 {[%clk 0:01:25]} 28. a3 {[%clk 0:01:22]}  e5 {[%clk 0:01:19]} 29. Rg1 {[%clk 0:01:14]}  Rd4 {[%clk 0:00:49]} 30. g4 {[%clk 0:01:14]}  Rxa4 {[%clk 0:00:49]} 31. gxh5 {[%clk 0:01:07]}  gxh5 {[%clk 0:00:50]} 32. Kb3 {[%clk 0:01:01]}  Rd4 {[%clk 0:00:51]} 33. Kc3 {[%clk 0:01:02]}  f5 {[%clk 0:00:49]} 34. Rg5 {[%clk 0:01:00]}  fxe4 {[%clk 0:00:48]} 35. fxe4 {[%clk 0:01:00]}  Rxe4 {[%clk 0:00:48]} 36. Rxh5 {[%clk 0:01:01]}  Kb6 {[%clk 0:00:41]} 37. Rg5 {[%clk 0:00:41]}  Rxh4 {[%clk 0:00:25]} 38. Rxe5 {[%clk 0:00:41]}  Rh3+ {[%clk 0:00:26]} 39. Kb2 {[%clk 0:00:41]}  Rd3 {[%clk 0:00:26]} 40. Rh5 {[%clk 0:00:35]}  a4 {[%clk 0:00:24]} 41. Rh4 {[%clk 0:00:34]}  Rb3+ {[%clk 0:00:21]} 42. Ka2 {[%clk 0:00:33]}  Kb5 {[%clk 0:00:22]} 43. Rh7 {[%clk 0:00:31]}  a6 {[%clk 0:00:16]} 44. Rb7+ {[%clk 0:00:26]}  Kc5 {[%clk 0:00:16]} 45. Ra7 {[%clk 0:00:25]}  Kb6 {[%clk 0:00:16]} 46. Rh7 {[%clk 0:00:25]}  Rf3 {[%clk 0:00:17]} 47. Rh4 {[%clk 0:00:24]}  Kb5 {[%clk 0:00:15]} 48. Rb4+ {[%clk 0:00:24]}  Ka5 {[%clk 0:00:16]} 49. Rb8 {[%clk 0:00:21]}  Rf2+ {[%clk 0:00:15]} 50. Ka1 {[%clk 0:00:20]}  c5 {[%clk 0:00:16]} 51. Rb7 {[%clk 0:00:19]}  Rf3 {[%clk 0:00:16]} 52. Ka2 {[%clk 0:00:19]}  Rf2+ {[%clk 0:00:16]} 53. Ka1 {[%clk 0:00:19]}  Rf6 {[%clk 0:00:17]} 54. Ka2 {[%clk 0:00:18]}  Re6 {[%clk 0:00:17]} 55. Rb8 {[%clk 0:00:17]}  Rb6 {[%clk 0:00:17]} 56. Rh8 {[%clk 0:00:15]}  Kb5 {[%clk 0:00:18]} 57. Rh4 {[%clk 0:00:15]}  Re6 {[%clk 0:00:18]} 58. Kb2 {[%clk 0:00:14]}  Re2+ {[%clk 0:00:18]} 59. Ka1 {[%clk 0:00:15]}  Re3 {[%clk 0:00:18]} 60. Ka2 {[%clk 0:00:15]}  Re2+ {[%clk 0:00:18]} 61. Ka1 {[%clk 0:00:15]}  Rd2 {[%clk 0:00:19]} 62. Rg4 {[%clk 0:00:14]}  Rd4 {[%clk 0:00:19]} 63. Rg6 {[%clk 0:00:14]}  Rd3 {[%clk 0:00:18]} 64. Kb2 {[%clk 0:00:14]}  Rd2+ {[%clk 0:00:18]} 65. Ka1 {[%clk 0:00:14]}  a5 {[%clk 0:00:19]} 66. Rg4 {[%clk 0:00:13]}  Rd4 {[%clk 0:00:18]} 67. Rg3 {[%clk 0:00:13]}  Kc4 {[%clk 0:00:19]} 68. Kb2 {[%clk 0:00:13]}  Rd2+ {[%clk 0:00:19]} 69. Kb1 {[%clk 0:00:13]}  Rd3 {[%clk 0:00:20]} 70. Rg4+ {[%clk 0:00:10]}  Kb3 {[%clk 0:00:21]} 71. Kc1 {[%clk 0:00:08]}  Rc3+ {[%clk 0:00:20]} 72. Kd2 {[%clk 0:00:08]}  c4 {[%clk 0:00:18]} 73. Rg5 {[%clk 0:00:08]}  Rd3+ {[%clk 0:00:16]} 74. Kc1 {[%clk 0:00:07]}  Kxa3 {[%clk 0:00:16]} 75. Rxa5 {[%clk 0:00:07]}  Rc3+ {[%clk 0:00:14]} 76. Kd2 {[%clk 0:00:07]}  Rh3 {[%clk 0:00:11]} 77. Ra8 {[%clk 0:00:06]}  Kb3 {[%clk 0:00:10]} 78. Rb8+ {[%clk 0:00:06]}  Ka2 {[%clk 0:00:10]} 79. Kc2 {[%clk 0:00:07]}  a3 {[%clk 0:00:06]} 80. Rb4 {[%clk 0:00:06]}  Rh4 {[%clk 0:00:05]} 81. Kc3 {[%clk 0:00:04]}  Ka1 {[%clk 0:00:05]} 82. Rb8 {[%clk 0:00:04]}  a2 {[%clk 0:00:05]} 83. Kc2 {[%clk 0:00:04]}  Rh1 {[%clk 0:00:04]} 84. Rb7 {[%clk 0:00:04]}  Rg1 {[%clk 0:00:04]} 85. Rb8 {[%clk 0:00:04]}  Rg2+ {[%clk 0:00:05]} 86. Kc1 {[%clk 0:00:03]}  Rg3 {[%clk 0:00:04]} 87. Kc2 {[%clk 0:00:03]}  Rb3 {[%clk 0:00:04]} 88. Rh8 {[%clk 0:00:03]}  Rb2+ {[%clk 0:00:05]} 89. Kc1 {[%clk 0:00:04]}  c3 {[%clk 0:00:05]} 90. Ra8 {[%clk 0:00:03]}  Rg2 {[%clk 0:00:03]} 91. Rb8 {[%clk 0:00:03]}  Rg1+ {[%clk 0:00:03]} 92. Kc2 {[%clk 0:00:03]}  Rb1 {[%clk 0:00:04]} 93. Ra8 {[%clk 0:00:03]}  Rb2+ {[%clk 0:00:04]} 94. Kc1 {[%clk 0:00:04]}  Rf2 {[%clk 0:00:04]} 95. Rb8 {[%clk 0:00:04]}  Rf1+ {[%clk 0:00:05]} 96. Kc2 {[%clk 0:00:04]}  Rh1 {[%clk 0:00:06]} 97. Rb7 {[%clk 0:00:03]}  Rh3 {[%clk 0:00:06]} 98. Rb8 {[%clk 0:00:04]}  Rh2+ {[%clk 0:00:06]} 99. Kc1 {[%clk 0:00:03]}  Rg2 {[%clk 0:00:07]} 100. Rb7 {[%clk 0:00:03]}  Rf2 {[%clk 0:00:07]} 101. Rb8 {[%clk 0:00:03]}  Rf3 {[%clk 0:00:07]} 102. Kc2 {[%clk 0:00:03]}  Re3 {[%clk 0:00:08]} 103. Rb7 {[%clk 0:00:03]}  Re8 {[%clk 0:00:08]} 104. Kxc3 {[%clk 0:00:03]}  Re2 {[%clk 0:00:08]} 105. Rb8 {[%clk 0:00:02]}  Rf2 {[%clk 0:00:08]} 106. Rb7 {[%clk 0:00:02]}  Rg2 {[%clk 0:00:09]} 107. Rb8 {[%clk 0:00:02]}  Rh2 {[%clk 0:00:09]} 108. Rb7 {[%clk 0:00:03]}  Rh1 {[%clk 0:00:10]} 109. Kc2 {[%clk 0:00:03]}  Rh2+ {[%clk 0:00:10]} 110. Kc1 {[%clk 0:00:03]}  Rh5 {[%clk 0:00:11]} 111. Kc2 {[%clk 0:00:03]}  Rc5+ {[%clk 0:00:11]} 112. Kd2 {[%clk 0:00:04]}  Rc6 {[%clk 0:00:12]} 113. Rb8 {[%clk 0:00:04]}  Re6 {[%clk 0:00:13]} 114. Rb7 {[%clk 0:00:04]}  Rc6 {[%clk 0:00:13]} 115. Rb8 {[%clk 0:00:05]}  Rc4 {[%clk 0:00:13]} 116. Rb7 {[%clk 0:00:05]}  Rh4 {[%clk 0:00:14]} 117. Rb8 {[%clk 0:00:06]}  Rh1 {[%clk 0:00:15]} 118. Kc2 {[%clk 0:00:06]}  Rb1 {[%clk 0:00:15]} 119. Rc8 {[%clk 0:00:05]}  Rb7 {[%clk 0:00:15]} 120. Ra8 {[%clk 0:00:05]}  Rc7+ {[%clk 0:00:15]} 121. Kd2 {[%clk 0:00:06]}  Rc4 {[%clk 0:00:15]} 122. Rb8 {[%clk 0:00:06]}  Rc5 {[%clk 0:00:15]} 123. Rb7 {[%clk 0:00:06]}  Rc6 {[%clk 0:00:15]} 1/2-1/2


[Site "https://www.chess.com"]